Cogmind - Beta 15 @@@ ROGUE MODE // 2025.06.29 @ 11:33:58 Player: StaticNoob Result: Destroyed by DJ-HG0(R) with Subdweller Beam Cannon Performance ------------- Evolutions (0) 0 Regions Visited (2) 400 Robots Destroyed (32) 160 Value Destroyed (822) 822 Prototype IDs (2) 40 Alien Tech Used (0) 0 Bonus (0) 0 TOTAL SCORE: 1422 Bonus ------- None Cogmind --------- Core Integrity 0/250 Matter 58/300 Energy 100/100 System Corruption 0% Temperature Cool (9) Movement Core (200) Ox3 Location -10/Subcaves Parts ------- > --- POWER (1) -------- (None) > --- PROPULSION (2) --- (None) > --- UTILITY (2) ------ Medium Storage Unit > --- WEAPON (2) ------- Makeshift Sword > --- INVENTORY (10) --- High-capacity Matter Pod (0) ECM Suite Propulsion Shielding Medium Armor Plating Battle Rifle Light Cannon Rocket Launcher Scrap Shield Fragment (49) Scrap Shield Fragment (46) Peak State ------------ > --- POWER ------------ Ion Engine > --- PROPULSION ------- Aluminum Leg Aluminum Leg > --- UTILITY ---------- Medium Storage Unit Seismic Detector > --- WEAPON ----------- Heavy Assault Rifle Rocket Launcher > --- INVENTORY -------- Light Ion Engine Aluminum Leg High-capacity Matter Pod ECM Suite Propulsion Shielding Medium Armor Plating Medium Laser Assault Rifle Light Cannon Rocket Launcher [Rating: 10] Favorites ----------- Power Ion Engine Engine Ion Engine Propulsion Aluminum Leg Leg Aluminum Leg Wheel Wheel Utility Seismic Detector Device Seismic Detector Storage Medium Storage Unit Weapon Light Cannon Energy Gun Medium Laser Ballistic Gun Heavy Assault Rifle Ballistic Cannon Light Cannon Launcher Rocket Launcher Slashing Weapon Makeshift Sword Build | -11 -10 -10 ------- Run | Yrd Mat Sub Slots Evolved . | . . . Power . | . . . Propulsion . | . . . Utility . | . . . Weapon . | . . . Parts Attached 24 | 8 9 7 Power 3 | 1 1 1 Engine 3 | 1 1 1 Core . | . . . Reactor . | . . . Propulsion 8 | 2 4 2 Treads . | . . . Leg 7 | 2 4 1 Wheel 1 | . . 1 Hover . | . . . Flight . | . . . Utility 3 | 2 1 . Device 1 | 1 . . Storage 2 | 1 1 . Processor . | . . . Hackware . | . . . Protection . | . . . Artifact . | . . . Weapon 10 | 3 3 4 Energy Gun 2 | 2 . . Energy Cannon . | . . . Ballistic Gun 3 | 1 1 1 Ballistic Cannon 2 | . 1 1 Launcher 2 | . 1 1 Special Weapon . | . . . Impact Weapon . | . . . Slashing Weapon 1 | . . 1 Piercing Weapon . | . . . Special Melee Weapon . | . . . Unidentified Prototypes . | . . . Parts Lost 8 | . . 8 Power 2 | . . 2 Propulsion 3 | . . 3 Utility 1 | . . 1 Weapon 2 | . . 2 Highest Loss Streak 6 | . . 6 To Critical Strikes . | . . . Average Backups 8 | 1 8 8 Power . | . 1 . Propulsion . | . . . Utility 3 | . 3 4 Weapon 2 | . 3 3 Tool/Special . | . . . Unused Backups 4 | . . 4 Power . | . . . Propulsion . | . . . Utility 4 | . . 4 Weapon . | . . . Tool/Special . | . . . Average Slot Usage (%) 99 | . 99 99 Engine 13 | . 13 14 Leg 27 | . 28 27 Device 13 | . 14 13 Storage 14 | . 14 14 Energy Gun 1 | . 3 . Ballistic Gun 8 | . 14 2 Ballistic Cannon 16 | . 10 21 Launcher 1 | . . 2 Peak Build Rating 10 | 7 9 10 Average Rating 8 | 5 8 8 On Entrance 5 | . 7 9 Naked Turns . | . . . Heaviest Build 24 | 13 22 24 Greatest Support 20 | 20 20 20 Greatest Overweight (x) 4 | . 1 4 Average Overweight (x) . | . . . Largest Inventory Capacity 10 | 8 10 10 Average Capacity 9 | 7 9 10 Most Carried 10 | 3 10 10 Average Carried 8 | 1 8 9 Final Capacity 10 | 8 10 10 Final Carried 10 | 2 10 9 Class Distribution -------------------- 59% | Mutant 40% | Scavenger-Mutant Dominant Class ---------------- Mutant | -10/Materials Scavenger-Mutant | -10/Subcaves Resources | -11 -10 -10 ----------- Run | Yrd Mat Sub Matter Collected 812 | 221 384 207 Remotely . | . . . Salvage Created 827 | 69 511 247 Parts 56 | 4 38 14 Haulers Intercepted 2 | . 2 . Recyclers Shooed . | . . . Parts Field Recycled . | . . . Retrieved Matter . | . . . Parts Self-Destructed 16 | . . 16 Prevented . | . . . Kills | -11 -10 -10 ------- Run | Yrd Mat Sub Combat Hostiles Destroyed 27 | . 15 12 Melee 1 | . . 1 Guns 7 | . 5 2 Cannons 10 | . 7 3 AOE 9 | . 3 6 Classes Destroyed 7 | 2 4 1 Tunneler 1 | 1 . . Hauler 2 | . 2 . Recycler 1 | 1 . . Watcher 1 | . 1 . Swarmer 9 | . 6 3 Grunt 9 | . 9 . Subdweller 9 | . . 9 Best Kill Streak 4 | 2 4 4 Combat Bots Only 4 | . 4 4 Max Kills in Single Turn 3 | 1 3 1 Gunslinging . | . . . Exploded 3 | . 3 1 Melee 1 | . . 1 Uniques/NPCs Destroyed . | . . . Combat | -11 -10 -10 -------- Run | Yrd Mat Sub Hostile Shots Fired 109 | . 44 65 Missed 29 | . 9 20 Hits 80 | . 35 45 Projectile 80 | . 35 45 Critical Strikes 1 | . . 1 Damage Taken 1357 | . 349 1008 Core 264 | . 95 169 Absorbed by Shields . | . . . Regen/Repaired (Parts) 16 | . 16 . Core Remaining (%) 100 | 100 . . Volleys Fired 79 | 6 38 35 Largest 2 | 2 2 2 Hottest 75 | 70 70 75 Shots Fired 154 | 12 74 68 Gun 78 | 12 43 23 Cannon 59 | . 29 30 Launcher 17 | . 2 15 Special . | . . . Kinetic 116 | 6 65 45 Thermal 21 | 6 7 8 Explosive 17 | . 2 15 Electromagnetic . | . . . Robot Hit Streak 10 | 1 5 10 Robot Miss Streak 3 | 3 3 2 Penetration Max . | . . . Secondary Targets . | . . . Shots Hit Robots 84 | 5 38 41 Core Hits 40 | 2 19 19 Critical Kills . | . . . Critical Parts Destroyed . | . . . Critical Strikes 1 | . . 1 Blast 1 | . . 1 Melee Attacks 3 | . . 3 Impact . | . . . Slashing 3 | . . 3 Piercing . | . . . Sneak Attacks . | . . . Combat Hostiles . | . . . Follow-up Attacks . | . . . Damage Inflicted 1965 | 61 749 1155 Guns 501 | 61 305 135 Cannons 604 | . 274 330 Explosions 791 | . 170 621 Melee 69 | . . 69 Ramming . | . . . Kinetic 1054 | 61 567 426 Thermal 51 | . 12 39 Explosive 791 | . 170 621 Electromagnetic . | . . . Impact . | . . . Slashing 69 | . . 69 Piercing . | . . . Highest Corruption . | . . . Average Corruption . | . . . Corruption Purged . | . . . Corruption Blocked . | . . . Overload Shots . | . . . Overflow Damage 41 | . 41 . Projectiles . | . . . Explosions 41 | . 41 . Melee . | . . . Knockbacks 4 | . 2 2 Impact . | . . . Kinetic 4 | . 2 2 Secondary . | . . . Self-Inflicted Damage 136 | . . 136 Shots 7 | . . 7 Rammed . | . . . Targets Rammed . | . . . Kicked . | . . . Crushed . | . . . Highest Temperature 266 | 27 27 266 Average Temperature 38 | 11 8 141 Received Heat Transfer 572 | . 132 440 Siege Activations . | . . . Martial Activations . | . . . Shielding Activations . | . . . Robots Disrupted . | . . . Combat Hostiles . | . . . Robots Corrupted . | . . . Combat Hostiles . | . . . Parts Fried . | . . . Impact Corruptions . | . . . Robots Melted . | . . . Combat Hostiles . | . . . Parts Melted . | . . . Heat Transferred 148 | . 37 111 Parts Sabotaged . | . . . Parts Stolen . | . . . Parts Stripped . | . . . Power Chain Reactions . | . . . Alert | -11 -10 -10 ------- Run | Yrd Mat Sub Maximum Alert Level 1 | . 1 . Low Security (%) 43 | 100 39 . Level 1 56 | . 60 . Level 2 . | . . . Level 3 . | . . . Level 4 . | . . . Level 5 . | . . . High Security . | . . . Max Security . | . . . Peak Influence 286 | 10 286 . Initial . | . . . Average 151 | . 163 . Influence Increases 634 | 10 554 70 Destroy 0b10 Robot/C 360 | . 300 60 Destroy 0b10 Robot/NC 25 | 10 15 . Destroy Leader 86 | . 76 10 Successful Hack 50 | . 50 . Select Force Hacks 60 | . 60 . Disable Machine 30 | . 30 . Destroy Structure 23 | . 23 . Influence Decreases 634 | 10 334 290 Entered New Map 106 | . . 106 Time Decay 528 | 10 334 184 Squads Dispatched 4 | . 4 . Investigation 4 | . 4 . Extermination . | . . . Reinforcement . | . . . Assault . | . . . Garrison . | . . . Intercept . | . . . Searches Triggered . | . . . Construction Impeded . | . . . Haulers Reinforced . | . . . Active Scanning Responses . | . . . Cargo Convoy Interrupts . | . . . Stealth | -11 -10 -10 --------- Run | Yrd Mat Sub Distress Signals . | . . . Communications Jammed . | . . . Distress Signals . | . . . Times Spotted 32 | . 20 12 Peak Tracking Total 3 | . 3 3 Tactical Retreats . | . . . Traps | -11 -10 -10 ------- Run | Yrd Mat Sub Traps Triggered 1 | . 1 . Indirectly . | . . . Trap Hack Attempts . | . . . Triggered . | . . . Disarmed . | . . . Reprogrammed . | . . . Reused . | . . . Traps Extracted . | . . . Installed . | . . . Triggered . | . . . Machines | -11 -10 -10 ---------- Run | Yrd Mat Sub Machines Disabled 2 | . 2 . Max in Single Turn 1 | . 1 . Machines Repaired . | . . . Machines Dismantled . | . . . Machines Sabotaged . | . . . Overloaded Fab Kills . | . . . Hacking | -11 -10 -10 --------- Run | Yrd Mat Sub Machines Accessed 11 | . 11 . Terminals 8 | . 8 . Fabricators . | . . . Repair Stations 1 | . 1 . Recycling Units 2 | . 2 . Scanalyzers . | . . . Garrison Access . | . . . Total Hacks 33 | . 33 . Successful 19 | . 19 . Failed 14 | . 14 . Catastrophic 1 | . 1 . Database Lockouts . | . . . Manual 22 | . 22 . Terminals 24 | . 24 . Fabricators . | . . . Repair Stations 4 | . 4 . Recycling Units 5 | . 5 . Scanalyzers . | . . . Garrison Access . | . . . Terminal Hacks 8 | . 8 . Robot Analysis 3 | . 3 . Prototype ID Bank 2 | . 2 . Level Access Points 1 | . 1 . Branch Access Points 1 | . 1 . Locate Traps 1 | . 1 . Fabricator Hacks . | . . . Repair Station Hacks 3 | . 3 . Scan Component 2 | . 2 . Repair 1 | . 1 . Recycling Unit Hacks 2 | . 2 . Report Inventory 1 | . 1 . Retrieve Components 1 | . 1 . Scanalyzer . | . . . Garrison Access Hacks . | . . . Unauthorized Hacks 6 | . 6 . Terminals 4 | . 4 . Botnet 4 | . 4 . Fabricators . | . . . Repair Stations . | . . . Recycling Units 2 | . 2 . Tunnel 2 | . 2 . Scanalyzers . | . . . Garrison Access . | . . . Data Cores Recovered . | . . . Used . | . . . Hacking Detections 9 | . 9 . Full Trace Events 1 | . 1 . Feedback Events . | . . . Feedback Blocked . | . . . Robot Schematics Acquired . | . . . Robots Built . | . . . Authchips . | . . . Time . | . . . Total Robot Build Rating . | . . . Part Schematics Acquired . | . . . Parts Built . | . . . Authchips . | . . . Time . | . . . Total Part Build Rating . | . . . Parts Repaired 1 | . 1 . Time 26 | . 26 . Parts Recycled . | . . . Recycled Matter . | . . . Retrieved Matter . | . . . Retrieved Components 4 | . 4 . Parts Scanalyzed . | . . . Part Schematics Acquired . | . . . Parts Damaged . | . . . Bothacking | -11 -10 -10 ------------ Run | Yrd Mat Sub Used RIF Installer . | . . . Robots Hacked . | . . . Non-combat . | . . . Combat . | . . . Robot Hacks Applied . | . . . Relay Couplers Released . | . . . Fabnet Peak Effective % . | . . . Robots Rewired . | . . . Allies Hacked . | . . . Hacks Repelled . | . . . Allies | -11 -10 -10 -------- Run | Yrd Mat Sub Total Allies . | . . . Largest Group . | . . . Highest-Rated Group . | . . . Highest-Rated Ally . | . . . Total Orders . | . . . Ally Attacks . | . . . Total Damage . | . . . Kills . | . . . Allies Corrupted . | . . . Allies Melted . | . . . Intel | -11 -10 -10 ------- Run | Yrd Mat Sub Active Infowar (turns) 2108 | 20 1076 1012 Seismic 2108 | 20 1076 1012 Robot Analysis Total 3 | . 3 . Derelict Logs Recovered 1 | . . 1 Drone Launches . | . . . Drone Recoveries . | . . . Exploration | -11 -10 -10 ------------- Run | Yrd Mat Sub Turns Passed 2187 | 82 1076 1029 Spaces Moved 1165 | 44 549 572 Core 5 | 3 . 2 Treads . | . . . Legs 1158 | 41 549 568 Wheels 2 | . . 2 Hover . | . . . Flight . | . . . Fastest Speed 50 | 50 120 95 Average Speed 151 | 115 154 150 Slowest Speed 250 | 120 190 250 Overloaded Moves . | . . . Propulsion Burnouts . | . . . Robots Hopped . | . . . Potential Cave-ins . | . . . Cave-ins Triggered . | . . . Exploration Rate (%) 47 | 4 98 39 Regions Visited 2 Branch Regions 1 Pre-discovered Areas 3 | . 2 1 Known Exits Taken . | . . . Unknown Exits Taken 2 | 1 1 . Scrap Searched . | . . . Spaces Dug 10 | . . 10 Terrain Destroyed 142 | . 23 119 Melee . | . . . Projectile . | . . . AOE 142 | . 23 119 Terrain Rammed . | . . . Walls Destroyed . | . . . Machines Disabled . | . . . Actions | -11 -10 -10 --------- Run | Yrd Mat Sub Total 1436 | 61 705 670 Wait 130 | . 93 37 Move 1163 | 43 548 572 Hop . | . . . Pick Up 15 | 3 7 5 Fast Attach 10 | 6 2 2 Attach 7 | 2 . 5 Detach 4 | 1 1 2 Swap 13 | . 9 4 Drop 12 | . 7 5 Fire 79 | 6 38 35 Melee 3 | . . 3 Ram . | . . . Kick . | . . . Crush . | . . . Escape Stasis . | . . . Rewire . | . . . Trap . | . . . Miscellaneous . | . . . Route ------- -11/Scrapyard -10/Materials (discovered 6 exits: *Mat x3 / *Min x2 / [*Sub]) -10/Subcaves History --------- Turn | Location | Event 42 | -11/Scrapyard | Discovered new exit (range 13) 83 | -11/Scrapyard | Entered Materials 97 | -10/Materials | Identified exit to Materials 116 | -10/Materials | Identified exit to Mines 305 | -10/Materials | Build established: Mutant 688 | -10/Materials | Repaired Ion Engine 1142 | -10/Materials | Discovered new exit (range 10) 1144 | -10/Materials | Build established: Scavenger-Mutant 1159 | -10/Materials | Entered Subcaves 1304 | -10/Subcaves | Ambushed by Subdweller buried in earth 1339 | -10/Subcaves | Shifting Twisted Machinery released Sub. Optics 1696 | -10/Subcaves | Shifting Twisted Machinery released Sub. Monowheel 1734 | -10/Subcaves | Shifting Twisted Machinery released Sub. Beam Cannon 1965 | -10/Subcaves | Shifting Twisted Machinery released Battle Cannon 1970 | -10/Subcaves | Shifting Twisted Machinery released Sub. Monowheel 2026 | -10/Subcaves | Build established: Mutant 2099 | -10/Subcaves | Core integrity fell below 50% 2170 | -10/Subcaves | Core integrity fell below 20% 2183 | -10/Subcaves | Learned location of Storage (-7) 2188 | -10/Subcaves | Destroyed by DJ-HG0(R) with Subdweller Beam Cannon Last Messages --------------- 02084_ 00-TCE(R): "ECOKILL!" 02093_ Subatomizers dissect the Sub. Laser. 02094_ Lgt. Cannon destroyed. 02103_ 00-TCE(R) destroyed. 02105_ Subatomizers dissect the Sub. Laser. 02108_ Acquired 23 matter. 02110_ Acquired 6 matter. 02136_ Acquired 10 matter. 02147_ Critical hit (Meltdown: +260). 02162_ Aluminum Leg destroyed. 02166_ Acquired 23 matter. 02166_ Aluminum Leg destroyed. 02170_ Acquired Mak. Sword. 02171_ Med. Laser destroyed. 02171_ Seismic Detector destroyed. 02179_ BR-62J(R) destroyed. 02181_ Wheel destroyed. 02183_ Acquired derelict log, extracted data. World map updated: -7/Storage. 02186_ Lgt. Ion Engine destroyed. Map ----- +----------------------------------------------------+ | ?????????????????????????????????????????????????? | | ?????????????????????????????????????????????????? | | ?????????????????????????????????????????????????? | | ?????????????????????????????????????????????????? | | ?????????????????????????????????????????????????? | | ?????????????????????????????????????????????????? | | ?????????????????????????????????????????????????? | | ?????????????????????????????????????????????????? | | ?????????????????????????????????????????????????? | | ?????????????????????????????????????????????????? | | ?????????????????????????????????????????????????? | | ?????????????????????????????????????????????????? | | ?????????????????????????##??????????????????????? | | ????????????????????? ???# #?????????????????????? | | ?????????????????????? ??? ""???????????????????? | | ?????????????????????? " ""?????????????????? ? | | ??????????????????????? """" ?????????????????? | | ??????????????????? ???? "" ###???????????????? | | ?????????????????? ???? ####?????????????? | | ?????????????????? ?????"" ""##?????????????? | | ??????????????????? ?????#"""" ""#?????????????? | | ???????????????????? ????# "#"#??????????????? | | ?????????????????????#""??## "####??###??##### | | ?????????????????????#" ### "###""#??# | | ??????????????????#??#""" #" ### """"""#???? | | ??????????????###"##?# @# " #####" "#??????# | | ??????????????#"" ### [R " "#### " "####?### | | ??????????????#" ### =##* ##" " "" ### | | ???????????####"" # ### ""##" " " | | ??????????##""#"""] ""?# ""##" ### | | ??????????#""= """"#" "? ##### ### | | ??????????#" ""#?### "?""##???#### " # | | ??????????#" ## "#??#""""#?###???????# " ### | | ??????????#### ##??#""""#####???##### " #?? | | ?????????????# #???## #?# ##??# ## ##? | | ?????????????# #????# ###"""#### #? | | ??????????##### ###### ##* ! ## ##? | | ?????????## ## & [ ###### | | ?????????# &[ # | | ?????????# *= ## | | ?????????## ### ## ##? | | ??????????##??# ##### ### ### | | ?????????????## ##??## ## ## | | ?????????????# #??## ## | | ?????????????### ## #### | | ???????????????### #### ## #### | | ?????????????????####?## ##### | | ???????????????????#### ### | | ??????????????###### | | ??????????????# ## | +----------------------------------------------------+ Best States ------------- Heat Dissipation 25 Energy Generation 10 Energy Capacity 250 Matter Stores 251 Matter Capacity 300 Sight Range 16 Terrain Scan Density 10 Evasion (%) 55 Item Schematics ----------------- None Robot Schematics ------------------ None Fabricated ------------ Nothing Repaired ---------- Ion Engine | 73% | -10/Materials Alien Tech Used ----------------- None Achievements -------------- None Challenges ------------ None Game ------ Seed PiercingSpacefoldHarness Manual? 0 Play Time 00:16:21 Cumulative 68.1 hours Start 2025.06.29 @ 11:19:02 End 2025.06.29 @ 11:33:58 Sessions 1 Manual Loads 0 Difficulty Rogue Special Mode None Game No. 82 Rogue 82 Adventurer 0 Explorer 0 Win Type - Total 1 Types 0/0/1/0/0/0/0/0/0/0 Lore% 34 Gallery% 48 Achievement% 42 Wizard Run 0 Options --------- Layout 1 ASCII 0 Keyboard 0 Movement Mouse Keybinds 0 Fullscreen 1 Font 24/Smallcaps Map View 50x35 Zoom Use 0% Tactical HUD 1 Map Filters NONE Filters NONE Steam 1 RUN: 353e62ac-e3b3-4d1d-990e-8b6a2d4da953